bitfinex/quotes_SOLUSD_20251116
["timestamp","ask_amount","ask_price","bid_price","bid_amount"]
[1763312551718,0.71,135.82,135.79,0.1]
[1763312552123,13.78892937,135.82,135.79,0.1]
[1763312552300,9.78882769,135.8,135.79,0.1]
[1763312552707,9.78882769,135.81,135.79,0.1]
[1763312553012,10.49882769,135.81,135.79,0.1]
[1763312553601,23.57775706,135.81,135.79,0.1]
[1763312554224,9.78882769,135.81,135.79,0.1]
[1763312554741,59.78882769,135.73,135.72,0.1]
[1763312554904,9.78882769,135.73,135.72,0.1]
[1763312555247,22.86775706,135.73,135.72,0.1]
[1763312555612,72.86775706,135.73,135.72,0.1]
[1763312555818,73.37775706,135.73,135.72,0.1]
[1763312556523,9.78882769,135.73,135.72,0.1]
[1763312557421,9.78882769,135.73,135.72,13.86892937]
[1763312557850,9.78882769,135.73,135.72,0.79]
[1763312558739,9.78882769,135.76,135.72,13.86892937]
[1763312558938,9.78882769,135.76,135.73,0.69]
[1763312559128,9.78882769,135.76,135.73,13.76892937]
[1763312559332,9.78882769,135.76,135.73,0.69]
[1763312559539,9.78882769,135.76,135.74,0.69]
[1763312560125,9.78882769,135.74,135.72,0.1]
[1763312560725,50.0,135.8,135.73,0.69]
[1763312560929,22.86775706,135.78,135.73,13.76892937]
[1763312561132,22.86775706,135.78,135.74,0.69]
[1763312561359,13.07892937,135.77,135.72,13.17892937]
[1763312561543,13.07892937,135.77,135.72,13.86892937]
[1763312561747,13.07892937,135.77,135.72,0.79]
[1763312561948,13.07892937,135.77,135.73,0.69]
[1763312562142,60.29882769,135.78,135.73,0.69]
[1763312562143,9.78882769,135.75,135.73,0.69]
[1763312562934,9.78882769,135.76,135.73,0.69]
[1763312563130,22.86775706,135.77,135.73,0.69]
[1763312563365,9.78882769,135.75,135.73,0.69]
[1763312564270,22.86775706,135.75,135.72,0.1]
[1763312564475,9.78882769,135.75,135.73,0.69]
[1763312564833,9.78882769,135.75,135.72,13.17892937]
[1763312564834,9.78882769,135.75,135.72,0.1]
[1763312565129,9.78882769,135.75,135.73,0.69]
[1763312565740,7.54510515,135.77,135.74,7.54510515]
[1763312565741,9.78882769,135.77,135.74,7.54510515]
[1763312566129,59.54510514,135.84,135.76,7.54510515]
[1763312566130,9.78882769,135.81,135.76,7.54510515]
[1763312566332,9.78882769,135.81,135.75,0.69]
[1763312566333,9.78882769,135.79,135.77,0.69]
[1763312566549,9.78882769,135.79,135.72,22.7512]
[1763312566550,9.78882769,135.77,135.73,0.69]
[1763312566743,9.78882769,135.77,135.75,7.54510515]
[1763312567147,17.33393284,135.81,135.76,8.23510515]
[1763312567341,17.33393284,135.81,135.77,7.54510515]
[1763312567541,39.98513284,135.81,135.77,8.23510515]
[1763312567743,40.49513284,135.81,135.76,7.54510515]
[1763312568241,40.49513284,135.81,135.76,8.23510515]
[1763312568638,9.78882769,135.79,135.76,8.23510515]
[1763312569035,9.78882769,135.79,135.76,0.69]
[1763312569235,9.78882769,135.79,135.76,8.23510515]
[1763312569547,9.78882769,135.77,135.73,8.23510515]
[1763312569749,17.33393284,135.77,135.73,8.23510515]
[1763312569929,17.33393284,135.77,135.74,0.69]
[1763312570661,9.78882769,135.75,135.72,9.33510515]
[1763312570861,9.78882769,135.75,135.73,0.69]
[1763312571666,9.78882769,135.75,135.73,8.23510515]
[1763312572068,9.78882769,135.75,135.74,0.69]
[1763312572648,9.78882769,135.75,135.72,9.33510515]
[1763312573369,17.33393284,135.75,135.72,1.1]
[1763312573576,17.33393284,135.75,135.72,1.79]
[1763312573738,17.33393284,135.75,135.72,1.1]
[1763312573935,30.19630515,135.73,135.72,1.1]
[1763312574137,39.98513284,135.73,135.72,1.1]
[1763312574340,67.84393284,135.73,135.72,1.0]
[1763312574651,67.84393284,135.73,135.6,88.74510515]
[1763312574652,9.78882769,135.69,135.62,8.23510515]
[1763312574846,9.78882769,135.65,135.63,0.69]
[1763312575050,9.78882769,135.66,135.63,0.69]
[1763312575302,9.78882769,135.66,135.64,0.69]
[1763312575453,9.78882769,135.67,135.64,0.69]
[1763312575857,7.54510515,135.67,135.64,0.69]
[1763312576067,7.54510515,135.68,135.64,0.69]
[1763312576369,9.78882769,135.69,135.65,7.54510515]
[1763312576863,9.78882769,135.69,135.66,0.69]
[1763312577166,9.78882769,135.69,135.66,8.23510515]
[1763312577664,9.78882769,135.69,135.66,0.69]
[1763312577966,9.78882769,135.67,135.64,8.23510515]
[1763312578358,7.54510515,135.67,135.63,7.54510515]
[1763312578559,7.54510515,135.67,135.62,8.23510515]
[1763312578744,7.54510515,135.67,135.63,7.54510515]
[1763312578940,22.6512,135.64,135.6,20.0]
[1763312579147,17.33393284,135.62,135.6,20.0]
[1763312579378,17.33393284,135.61,135.6,20.0]
[1763312579667,9.78882769,135.61,135.6,20.0]
[1763312580241,17.33393284,135.61,135.6,20.0]
[1763312580449,60.19882769,135.61,135.6,19.9]
[1763312580663,9.78882769,135.6,135.59,0.0747937]
[1763312580949,39.98513284,135.6,135.59,0.0747937]
[1763312581275,22.6512,135.62,135.59,0.0747937]
[1763312581453,22.6512,135.62,135.59,0.7647937]
[1763312581649,9.78882769,135.62,135.59,8.30989885]
[1763312581866,9.78882769,135.63,135.6,7.54510515]
[1763312582172,59.78882769,135.63,135.59,0.0747937]
[1763312582372,67.33393284,135.63,135.59,0.0747937]
[1763312583071,7.54510515,135.62,135.59,0.0747937]
[1763312583271,9.78882769,135.6,135.59,0.0747937]
[1763312583459,17.33393284,135.6,135.59,0.0747937]
[1763312583655,9.78882769,135.6,135.59,0.0747937]
[1763312584058,22.6512,135.61,135.59,0.7647937]
[1763312584267,9.78882769,135.63,135.6,7.54510515]
[1763312584470,9.78882769,135.63,135.6,0.69]
[1763312585069,9.78882769,135.63,135.61,0.69]
[1763312585252,50.0,135.65,135.62,7.54510515]
[1763312585447,9.78882769,135.64,135.62,7.54510515]
[1763312585695,22.6512,135.66,135.63,7.54510515]
[1763312585867,9.78882769,135.68,135.64,7.54510515]
[1763312586053,32.44002769,135.68,135.62,0.69]
[1763312586252,17.33393284,135.65,135.61,7.54510515]
[1763312586453,80.19630515,135.67,135.63,7.54510515]
[1763312586758,9.78882769,135.66,135.64,7.54510515]
[1763312587261,7.54510515,135.68,135.64,7.54510515]
[1763312587461,7.54510515,135.66,135.62,7.54510515]
[1763312587765,60.09882769,135.67,135.59,0.0747937]
[1763312587976,9.78882769,135.62,135.59,0.0747937]
[1763312588366,7.54510515,135.63,135.6,0.69]
[1763312588367,9.78882769,135.63,135.6,0.69]
[1763312588904,7.54510515,135.62,135.59,0.0747937]
[1763312589058,9.78882769,135.63,135.59,0.0747937]
[1763312589059,9.78882769,135.63,135.6,0.69]
[1763312589390,0.31,135.62,135.59,0.0747937]
[1763312589559,17.33393284,135.6,135.59,0.0747937]
[1763312590063,9.78882769,135.6,135.59,0.0747937]
[1763312591283,17.33393284,135.63,135.59,0.7647937]
[1763312591462,50.0,135.66,135.6,7.54510515]
[1763312591663,59.78882769,135.66,135.62,7.54510515]
[1763312591866,7.54510515,135.65,135.59,0.7647937]
[1763312592063,22.6512,135.66,135.61,7.54510515]
[1763312592265,22.6512,135.66,135.59,0.0747937]
[1763312592480,10.09882769,135.65,135.59,7.61989885]
[1763312592656,10.09882769,135.65,135.59,8.30989885]
[1763312592859,10.09882769,135.65,135.59,0.7647937]
[1763312592860,9.78882769,135.62,135.59,0.7647937]
[1763312593058,57.54510515,135.63,135.59,0.7647937]
[1763312593059,50.0,135.63,135.59,0.0747937]
[1763312593384,57.54510515,135.63,135.59,0.7647937]
[1763312593565,50.0,135.63,135.59,0.7647937]
[1763312593770,7.54510515,135.63,135.59,8.30989885]
[1763312593971,17.33393284,135.64,135.59,0.7647937]
[1763312594181,9.78882769,135.65,135.6,0.72]
[1763312594383,22.6512,135.66,135.63,7.54510515]
[1763312594579,67.33393284,135.67,135.63,7.54510515]
[1763312594580,9.78882769,135.67,135.63,7.54510515]
[1763312594771,7.54510515,135.68,135.63,0.72]
[1763312594970,7.54510515,135.66,135.61,8.26510515]
[1763312595172,17.33393284,135.65,135.61,0.72]
[1763312595393,82.75002769,135.65,135.6,7.54510515]
[1763312595585,50.0,135.72,135.64,7.54510515]
[1763312595788,7.54510515,135.71,135.66,7.54510515]
[1763312596179,7.54510515,135.71,135.6,37.57085532]
[1763312596473,9.78882769,135.68,135.65,7.54510515]
[1763312596801,50.0,135.69,135.65,7.54510515]
[1763312596997,50.0,135.69,135.65,8.22510515]
[1763312597496,17.33393284,135.7,135.66,8.22510515]
[1763312597497,9.78882769,135.7,135.66,8.22510515]
[1763312597698,9.78882769,135.7,135.68,7.54510515]
[1763312597870,50.0,135.71,135.68,7.54510515]
[1763312598074,9.78882769,135.72,135.69,7.54510515]
[1763312598601,9.78882769,135.72,135.68,0.68]
[1763312599093,9.78882769,135.72,135.69,7.54510515]
[1763312599486,50.0,135.73,135.71,7.54510515]
[1763312599685,9.78882769,135.74,135.72,7.54510515]
[1763312599876,50.0,135.78,135.73,7.54510515]
[1763312600076,50.0,135.78,135.75,7.54510515]
[1763312600381,50.0,135.78,135.69,30.02081926]
[1763312600692,50.0,135.78,135.75,7.54510515]
[1763312601205,9.78882769,135.77,135.74,7.54510515]
[1763312601390,17.33393284,135.75,135.69,0.68]
[1763312601702,9.78882769,135.73,135.69,8.22510515]
[1763312602489,9.78882769,135.73,135.7,7.54510515]
[1763312602685,9.78882769,135.73,135.69,7.54510515]
[1763312602892,17.64393284,135.73,135.67,0.68]
[1763312603099,7.54510515,135.72,135.67,0.68]
[1763312603287,9.78882769,135.71,135.68,7.54510515]
[1763312603679,9.78882769,135.71,135.67,0.68]
[1763312603879,9.78882769,135.71,135.68,7.54510515]
[1763312604079,9.78882769,135.71,135.69,7.54510515]
[1763312604307,9.78882769,135.71,135.67,0.68]
[1763312604308,9.78882769,135.71,135.62,22.6512]
[1763312604600,9.78882769,135.71,135.68,7.54510515]
[1763312604982,50.0,135.72,135.69,7.54510515]
[1763312605181,0.51,135.8,135.7,0.68]
[1763312605379,50.0,135.76,135.73,7.54510515]
[1763312605686,9.78882769,135.77,135.68,7.54510515]
[1763312605884,50.0,135.78,135.72,7.54510515]
[1763312605885,7.54510515,135.76,135.72,7.54510515]
[1763312606085,7.54510515,135.77,135.72,7.54510515]
[1763312606380,17.33393284,135.77,135.72,7.54510515]
[1763312606704,7.54510515,135.75,135.7,7.54510515]
[1763312607002,7.54510515,135.75,135.71,7.54510515]
[1763312607389,72.6512,135.78,135.73,7.54510515]
[1763312607693,50.2,135.8,135.75,7.54510515]
[1763312607878,50.2,135.8,135.72,0.68]
[1763312608078,9.78882769,135.79,135.76,7.54510515]
[1763312608305,0.2,135.8,135.78,7.54510515]
[1763312608520,0.2,135.8,135.79,7.54510515]
[1763312608818,0.2,135.8,135.79,8.22510515]
[1763312609229,50.0,135.86,135.79,8.22510515]
[1763312609385,0.71,135.89,135.76,7.54510515]
[1763312609386,50.0,135.88,135.84,7.54510515]
[1763312609692,0.2,135.89,135.87,7.54510515]
[1763312609895,0.2,135.89,135.85,7.54510515]
[1763312610082,7.74510515,135.89,135.85,7.54510515]
[1763312610488,9.78882769,135.88,135.85,8.22510515]
[1763312610911,9.78882769,135.88,135.83,7.54510515]
[1763312610912,17.33393284,135.88,135.83,7.54510515]
[1763312611110,9.78882769,135.84,135.79,0.68]
[1763312611297,17.33393284,135.84,135.8,7.54510515]
[1763312611625,9.78882769,135.84,135.8,8.22510515]
[1763312611911,9.78882769,135.84,135.81,7.54510515]
[1763312612117,9.78882769,135.84,135.81,0.68]
[1763312612416,9.78882769,135.84,135.81,8.22510515]
[1763312612590,9.78882769,135.84,135.81,7.54510515]
[1763312612978,9.78882769,135.84,135.8,7.54510515]
[1763312613182,9.78882769,135.85,135.82,7.54510515]
[1763312613423,57.54510515,135.86,135.82,7.54510515]
[1763312613424,50.0,135.86,135.82,7.54510515]
[1763312613705,57.54510515,135.86,135.82,7.54510515]
[1763312614085,57.54510515,135.86,135.82,68.74510515]
[1763312614283,17.33393284,135.87,135.83,7.54510515]
[1763312614516,9.78882769,135.87,135.83,0.68]
[1763312614802,9.78882769,135.87,135.84,0.68]
[1763312615108,17.33393284,135.85,135.81,7.54510515]
[1763312615421,32.44002769,135.85,135.8,7.54510515]
[1763312615584,39.98513284,135.85,135.8,8.22510515]
[1763312615913,39.98513284,135.85,135.73,5.68]
[1763312615914,22.6512,135.78,135.73,5.68]
[1763312616113,17.33393284,135.78,135.73,13.22510515]
[1763312616284,9.78882769,135.78,135.73,5.68]
[1763312616620,72.6512,135.79,135.74,0.68]
[1763312616782,7.54510515,135.77,135.74,0.68]
[1763312617587,7.54510515,135.8,135.75,7.54510515]
[1763312617818,7.54510515,135.79,135.74,8.22510515]
[1763312617991,60.29882769,135.83,135.75,8.22510515]
[1763312617992,7.54510515,135.81,135.75,8.22510515]
[1763312618195,7.54510515,135.82,135.76,7.54510515]
[1763312618388,7.54510515,135.82,135.77,7.54510515]
[1763312618589,7.54510515,135.81,135.78,0.68]
[1763312618816,7.54510515,135.8,135.75,0.68]
[1763312619120,7.54510515,135.79,135.74,8.22510515]
[1763312619294,73.1612,135.83,135.75,8.22510515]
[1763312619494,7.54510515,135.82,135.77,7.54510515]
[1763312619887,7.54510515,135.82,135.78,0.68]
[1763312620207,7.54510515,135.8,135.75,8.22510515]
[1763312620417,7.54510515,135.79,135.75,0.68]
[1763312620785,7.54510515,135.78,135.73,5.68]
[1763312621019,7.54510515,135.76,135.73,5.68]
[1763312621399,7.54510515,135.76,135.73,5.0]
[1763312621585,7.54510515,135.76,135.73,5.68]
[1763312622112,7.54510515,135.77,135.74,0.68]
[1763312622608,7.54510515,135.76,135.73,5.0]
[1763312622912,7.54510515,135.77,135.74,0.68]
[1763312623489,10.29882769,135.76,135.73,5.0]
[1763312623690,7.54510515,135.75,135.73,5.67]
[1763312623915,7.54510515,135.76,135.73,5.67]
[1763312625205,7.54510515,135.75,135.73,5.0]
[1763312625424,7.54510515,135.74,135.73,5.0]
[1763312626012,7.54510515,135.74,135.59,0.0747937]
[1763312626013,50.0,135.7,135.59,0.0747937]
[1763312626212,7.54510515,135.69,135.66,0.67]
[1763312626606,50.0,135.73,135.66,0.67]
[1763312626822,11.83425008,135.68,135.66,0.67]
[1763312627002,59.78882769,135.71,135.66,0.67]
[1763312627003,11.83425008,135.67,135.66,0.67]
[1763312627321,11.83425008,135.67,135.64,0.67]
[1763312627489,11.83425008,135.66,135.64,0.67]
[1763312627692,59.78882769,135.71,135.62,0.67]
[1763312627693,11.83425008,135.65,135.62,0.67]
[1763312628326,11.83425008,135.64,135.62,0.67]
[1763312628517,11.83425008,135.63,135.62,0.67]
[1763312629917,11.83425008,135.63,135.6,0.67]
[1763312630908,9.78882769,135.66,135.6,12.50425008]
[1763312630909,11.83425008,135.66,135.6,12.50425008]
[1763312631413,11.83425008,135.66,135.61,0.67]
[1763312631606,11.83425008,135.67,135.61,12.50425008]
[1763312632126,9.78882769,135.7,135.62,0.67]
[1763312632298,11.83425008,135.66,135.62,0.67]
[1763312632503,11.83425008,135.65,135.62,0.67]
[1763312632918,11.83425008,135.66,135.62,0.67]
[1763312633628,11.83425008,135.65,135.62,0.67]
[1763312634512,11.83425008,135.66,135.62,0.67]
[1763312635843,11.83425008,135.69,135.63,11.83425008]
[1763312636131,11.83425008,135.68,135.63,11.83425008]
[1763312636428,11.83425008,135.68,135.62,23.3212]
[1763312636429,11.83425008,135.68,135.64,0.67]
[1763312636611,11.83425008,135.66,135.64,0.67]
[1763312637022,11.83425008,135.67,135.64,0.67]
[1763312637205,50.0,135.71,135.64,0.67]
[1763312637206,11.83425008,135.66,135.64,0.67]
[1763312637609,11.83425008,135.67,135.64,0.67]
[1763312638719,9.78882769,135.7,135.64,0.67]
[1763312638917,11.83425008,135.66,135.64,0.67]
[1763312639825,11.83425008,135.65,135.61,0.67]
[1763312640009,11.83425008,135.62,135.61,0.67]
[1763312640398,11.83425008,135.62,135.59,0.7447937]
[1763312641039,59.78882769,135.67,135.59,0.7447937]
[1763312641338,11.83425008,135.66,135.6,11.83425008]
[1763312641509,11.83425008,135.66,135.61,0.67]
[1763312641702,9.78882769,135.69,135.61,0.67]
[1763312641902,11.83425008,135.66,135.61,0.67]
[1763312642334,11.83425008,135.68,135.62,11.83425008]
[1763312642505,11.83425008,135.67,135.63,0.67]
[1763312643210,11.83425008,135.71,135.65,11.83425008]
[1763312643735,11.83425008,135.71,135.66,0.67]
[1763312643910,9.78882769,135.73,135.66,0.67]
[1763312644107,11.83425008,135.71,135.66,12.50425008]
[1763312644618,11.83425008,135.71,135.67,0.67]
[1763312644820,11.83425008,135.69,135.67,0.67]
[1763312645499,11.83425008,135.69,135.64,61.2]
[1763312645700,11.83425008,135.68,135.65,0.67]
[1763312645931,11.83425008,135.66,135.62,61.87]
[1763312646133,22.6512,135.72,135.65,0.67]
[1763312646429,11.83425008,135.69,135.65,0.67]
[1763312647046,72.6512,135.74,135.65,73.70425008]
[1763312647215,11.83425008,135.69,135.66,0.67]
[1763312647424,50.0,135.74,135.66,12.50425008]
[1763312647631,11.83425008,135.73,135.67,12.50425008]
[1763312647949,9.78882769,135.77,135.68,12.50425008]
[1763312648112,9.78882769,135.77,135.69,12.50425008]
[1763312648113,11.83425008,135.75,135.69,12.50425008]
[1763312648314,11.83425008,135.74,135.69,12.50425008]
[1763312648546,11.83425008,135.74,135.7,0.67]
[1763312649043,11.83425008,135.71,135.67,61.87]
[1763312649345,11.83425008,135.73,135.68,0.67]
[1763312649642,11.83425008,135.73,135.68,61.87]
[1763312649812,11.83425008,135.72,135.68,61.87]
[1763312650016,11.83425008,135.71,135.66,73.03425008]
[1763312650317,50.0,135.76,135.69,0.67]
[1763312650542,11.83425008,135.72,135.69,0.67]
[1763312651135,11.83425008,135.73,135.69,0.67]
[1763312651441,11.83425008,135.72,135.69,0.67]
[1763312651644,2.83425008,135.71,135.69,0.67]
[1763312652448,11.83425008,135.7,135.69,0.67]
[1763312652624,11.83425008,135.7,135.66,61.87]
[1763312652951,11.83425008,135.7,135.67,0.67]
[1763312653724,11.83425008,135.7,135.67,61.87]
[1763312654424,11.83425008,135.7,135.68,0.72]
[1763312654619,11.83425008,135.72,135.68,0.72]
[1763312655319,9.78882769,135.75,135.68,0.72]
[1763312655538,11.83425008,135.72,135.68,61.92]
[1763312655938,11.83425008,135.7,135.69,0.66]
[1763312656821,11.83425008,135.7,135.68,61.2]
[1763312657133,11.83425008,135.69,135.68,0.66]
[1763312657332,9.78882769,135.75,135.68,0.66]
[1763312657532,57.50935396,135.81,135.68,61.86]
[1763312657533,11.83425008,135.72,135.68,61.86]
[1763312657729,50.0,135.78,135.69,0.66]
[1763312657943,11.83425008,135.75,135.69,177.49425008]
[1763312658345,11.83425008,135.75,135.7,0.66]
[1763312658547,11.83425008,135.75,135.7,165.66]
[1763312658725,11.83425008,135.75,135.71,0.66]
[1763312659037,11.83425008,135.74,135.71,0.66]
[1763312659234,72.6512,135.8,135.68,22.6512]
[1763312659235,11.83425008,135.73,135.68,22.6512]
[1763312659437,11.83425008,135.7,135.67,0.66]
[1763312659629,11.83425008,135.7,135.68,0.66]
[1763312660141,9.78882769,135.76,135.68,61.86]
[1763312660358,11.83425008,135.7,135.68,61.86]
[1763312660716,11.83425008,135.7,135.69,0.66]
[1763312662452,11.83425008,135.7,135.68,61.2]
[1763312662629,11.83425008,135.69,135.68,61.86]
[1763312662837,11.83425008,135.7,135.68,61.86]
[1763312663344,11.83425008,135.7,135.68,61.2]
[1763312663546,11.83425008,135.71,135.69,0.66]
[1763312663858,9.78882769,135.76,135.69,0.66]
[1763312664159,72.6512,135.77,135.69,61.86]
[1763312664351,11.83425008,135.72,135.7,0.66]
[1763312664545,11.83425008,135.73,135.7,61.86]
[1763312664755,11.83425008,135.73,135.71,0.66]
[1763312666329,11.83425008,135.72,135.71,0.66]
[1763312666642,11.83425008,135.72,135.7,61.2]
[1763312666963,11.83425008,135.71,135.7,165.0]
[1763312667166,11.83425008,135.71,135.7,61.86]
[1763312667331,11.83425008,135.73,135.7,61.86]
[1763312667542,11.83425008,135.76,135.71,0.66]
[1763312667763,11.83425008,135.76,135.71,165.66]
[1763312668266,11.83425008,135.78,135.73,11.83425008]
[1763312668658,11.83425008,135.76,135.74,0.66]
[1763312668972,11.83425008,135.75,135.73,0.66]
[1763312669369,11.83425008,135.74,135.73,0.66]
[1763312670842,11.83425008,135.75,135.73,0.66]
[1763312671246,11.83425008,135.78,135.73,12.49425008]
[1763312671562,7.50935396,135.83,135.75,11.83425008]
[1763312671882,11.83425008,135.81,135.76,12.49425008]
[1763312672061,11.83425008,135.81,135.77,0.66]
[1763312673055,11.83425008,135.82,135.77,12.49425008]
[1763312673256,11.83425008,135.82,135.78,0.66]
[1763312674166,11.83425008,135.79,135.78,0.66]
[1763312674347,11.83425008,135.8,135.78,0.66]
[1763312677365,11.83425008,135.81,135.78,0.66]
[1763312678177,11.83425008,135.82,135.78,0.66]
[1763312678856,11.83425008,135.82,135.78,12.49425008]
[1763312679463,11.83425008,135.82,135.79,0.66]
[1763312680052,90.14938165,135.87,135.79,0.66]
[1763312680053,11.83425008,135.81,135.79,0.66]
[1763312680881,11.83425008,135.85,135.81,61.2]
[1763312681180,11.83425008,135.85,135.82,0.66]
[1763312681388,11.83425008,135.83,135.76,22.6512]
[1763312681555,11.83425008,135.82,135.78,0.66]
[1763312681757,11.83425008,135.83,135.79,11.83425008]
[1763312681957,11.83425008,135.84,135.79,11.83425008]
[1763312682177,11.83425008,135.84,135.8,0.66]
[1763312682568,50.2,135.87,135.8,0.66]
[1763312682569,11.83425008,135.82,135.8,0.66]
[1763312682856,11.83425008,135.83,135.8,0.66]
[1763312683660,0.2,135.87,135.8,0.66]
[1763312683875,11.83425008,135.83,135.8,0.66]
[1763312684198,11.83425008,135.86,135.81,11.83425008]
[1763312684395,12.03425008,135.87,135.83,11.83425008]
[1763312684764,11.83425008,135.84,135.81,0.7]
[1763312684987,11.83425008,135.85,135.81,12.53425008]
[1763312685196,0.2,135.87,135.82,11.83425008]
[1763312685391,0.2,135.87,135.83,0.7]
[1763312685392,12.03425008,135.87,135.83,0.7]
[1763312686374,11.83425008,135.86,135.83,0.7]
[1763312688598,12.03425008,135.87,135.83,0.7]
[1763312688902,7.73185384,135.87,135.83,0.7]
[1763312689078,7.73185384,135.87,135.83,8.23185384]
[1763312689277,0.2,135.87,135.83,8.23185384]
[1763312689493,0.2,135.87,135.84,0.7]
[1763312689795,7.73185384,135.87,135.84,0.7]
[1763312690195,7.73185384,135.87,135.84,61.9]
[1763312690696,0.2,135.87,135.85,8.23185384]
[1763312690879,0.2,135.87,135.86,0.7]
[1763312693002,0.2,135.87,135.84,0.7]
[1763312693209,0.2,135.87,135.85,0.7]
[1763312693380,7.53185384,135.86,135.82,0.7]
[1763312693586,7.53185384,135.85,135.8,0.7]
[1763312693794,7.53185384,135.82,135.78,0.7]
[1763312693992,7.53185384,135.8,135.78,0.7]
[1763312694211,7.53185384,135.8,135.75,7.53185384]
[1763312694392,7.53185384,135.79,135.77,0.7]
[1763312695392,7.53185384,135.79,135.75,0.7]
[1763312695614,7.53185384,135.76,135.73,0.7]
[1763312695790,50.0,135.8,135.71,7.53185384]
[1763312696000,7.53185384,135.76,135.72,0.7]
[1763312697108,7.53185384,135.76,135.72,23.3512]
[1763312697306,7.53185384,135.76,135.73,0.7]
[1763312697491,7.53185384,135.75,135.7,0.7]
[1763312697698,9.78882769,135.78,135.7,0.7]
[1763312697946,7.53185384,135.74,135.7,0.7]
[1763312698603,7.53185384,135.75,135.7,8.23185384]
[1763312698911,7.53185384,135.75,135.71,0.7]
[1763312700237,7.53185384,135.76,135.71,8.23185384]
[1763312700405,7.53185384,135.74,135.69,7.53185384]
[1763312700604,7.53185384,135.72,135.68,30.88305384]
[1763312700927,7.53185384,135.72,135.69,0.7]
[1763312701106,7.53185384,135.73,135.69,0.7]
[1763312701299,50.0,135.77,135.69,0.7]
[1763312701300,22.6512,135.76,135.69,8.23185384]
[1763312701500,22.6512,135.76,135.7,7.53185384]
[1763312701501,7.53185384,135.75,135.7,7.53185384]
[1763312701801,7.53185384,135.74,135.7,0.7]
[1763312702000,7.53185384,135.77,135.72,7.53185384]
[1763312702228,7.53185384,135.77,135.73,7.53185384]
[1763312702434,7.53185384,135.77,135.73,0.7]
[1763312702615,7.53185384,135.76,135.73,0.7]
[1763312703314,7.53185384,135.74,135.7,0.7]
[1763312703511,7.53185384,135.74,135.68,30.18305384]
[1763312703512,22.6512,135.74,135.68,0.7]
[1763312703715,7.53185384,135.72,135.68,0.7]
[1763312704110,7.53185384,135.72,135.68,8.23185384]
[1763312704518,7.53185384,135.72,135.69,0.7]
[1763312705738,7.53185384,135.71,135.66,30.18305384]
[1763312705917,7.53185384,135.7,135.66,30.88305384]
[1763312706101,7.53185384,135.71,135.66,30.88305384]
[1763312706302,7.53185384,135.7,135.66,23.3512]
[1763312706616,7.53185384,135.69,135.66,0.7]
[1763312706828,7.53185384,135.69,135.64,7.53185384]
[1763312707028,7.53185384,135.69,135.65,8.23185384]
[1763312707205,7.53185384,135.7,135.65,30.88305384]
[1763312707409,7.53185384,135.69,135.65,0.7]
[1763312707612,7.53185384,135.67,135.63,0.7]
[1763312707829,7.53185384,135.67,135.62,7.53185384]
[1763312708026,7.53185384,135.65,135.61,7.53185384]
[1763312708213,7.53185384,135.64,135.6,0.7]
[1763312708418,7.53185384,135.65,135.6,8.23185384]
[1763312708739,32.44002769,135.68,135.62,7.53185384]
[1763312708945,7.53185384,135.67,135.63,7.53185384]
[1763312709313,50.0,135.71,135.66,7.53185384]
[1763312709314,7.53185384,135.7,135.66,7.53185384]
[1763312709515,30.18305384,135.71,135.66,7.53185384]
[1763312709738,17.32068153,135.72,135.67,8.23185384]
[1763312709956,7.53185384,135.73,135.69,7.53185384]
[1763312710113,50.0,135.77,135.69,7.53185384]
[1763312710314,7.53185384,135.74,135.7,7.53185384]
[1763312710514,7.53185384,135.75,135.7,7.53185384]
[1763312710734,7.53185384,135.75,135.67,7.37071868]
[1763312710735,9.78882769,135.76,135.71,8.23185384]
[1763312710932,7.53185384,135.76,135.71,8.23185384]
[1763312711134,7.53185384,135.76,135.72,8.23185384]
[1763312711533,7.53185384,135.76,135.72,0.7]
[1763312712631,17.32068153,135.78,135.74,7.53185384]
[1763312712821,17.32068153,135.78,135.74,8.23185384]
[1763312713010,17.32068153,135.78,135.74,0.7]
[1763312713643,22.6512,135.79,135.74,8.23185384]